bitfinex/quotes_ETHUSD_20250822
["timestamp","ask_amount","ask_price","bid_price","bid_amount"]
[1755871848789,0.002,4499.7,4498.1,0.66]
[1755871849000,1.1211662,4506.4,4498.5,0.66]
[1755871849173,0.025,4502.0,4498.8,0.66]
[1755871849378,0.11626079,4501.7,4499.0,3.0]
[1755871849583,0.025,4502.0,4499.2,2.22261735]
[1755871849903,0.025,4502.0,4499.5,0.66]
[1755871850205,0.025,4502.0,4499.6,30.46762419]
[1755871850406,0.025,4502.0,4499.6,0.4454]
[1755871850774,0.025,4502.0,4499.7,1.71]
[1755871851078,0.025,4502.0,4499.8,0.0222232]
[1755871851280,0.025,4502.0,4499.9,0.66]
[1755871851480,0.025,4502.0,4499.5,0.4454]
[1755871851685,0.11623201,4505.4,4500.1,2.22217284]
[1755871851903,0.11543201,4505.4,4501.7,0.1112]
[1755871852110,1.71,4506.9,4503.6,2.22044008]
[1755871852274,1.71,4506.9,4503.5,0.4454]
[1755871852275,7.374106,4506.8,4503.5,0.4454]
[1755871852630,0.4479,4507.6,4504.7,2.21988091]
[1755871852907,0.4479,4508.7,4504.7,1.709]
[1755871853123,1.709,4508.9,4505.0,3.0]
[1755871853317,1.15681734,4509.2,4505.2,3.0]
[1755871853476,0.1161376,4510.0,4505.4,3.0]
[1755871853677,0.1161376,4510.0,4505.6,3.0]
[1755871853900,0.1161376,4510.0,4507.7,2.21838104]
[1755871854200,1.709,4511.2,4507.8,2.1544]
[1755871854416,7.992906,4511.1,4507.4,1.709]
[1755871854618,2.21685251,4510.9,4506.4,1.709]
[1755871854768,7.822006,4510.8,4506.3,1.709]
[1755871854972,7.822006,4510.7,4506.3,1.709]
[1755871855211,3.0,4510.5,4506.3,1.709]
[1755871855517,9.4385066,4510.4,4506.0,5.343]
[1755871855814,7.822006,4510.3,4506.1,0.66]
[1755871855993,7.822006,4510.3,4506.0,5.343]
[1755871855994,9.083106,4510.2,4506.0,5.343]
[1755871856196,2.21724573,4510.1,4506.3,2.21911546]
[1755871856368,1.709,4510.2,4506.5,0.66]
[1755871856572,1.709,4510.2,4506.0,5.343]
[1755871856573,7.822006,4510.1,4506.0,0.4454]
[1755871856809,3.0,4509.9,4506.0,0.4454]
[1755871857018,1.6874006,4510.0,4506.0,2.1544]
[1755871857191,0.4479,4509.9,4506.0,2.1544]
[1755871857391,2.21749157,4509.6,4506.0,2.1544]
[1755871857583,2.21739323,4509.8,4506.0,2.1544]
[1755871857778,0.4479,4509.9,4506.3,0.66]
[1755871858098,0.4479,4509.9,4506.5,3.66]
[1755871858302,2.21731633,4510.0,4506.7,0.66]
[1755871858501,2.21724573,4510.1,4506.6,5.34]
[1755871858701,0.4479,4510.0,4506.7,2.15684]
[1755871858902,0.4479,4510.0,4506.2,2.66455868]
[1755871858903,0.66,4509.6,4506.2,0.4454]
[1755871859101,2.21739323,4509.8,4505.5,5.34]
[1755871859102,0.66,4509.3,4505.5,5.34]
[1755871859311,3.0,4509.1,4504.5,0.4454]
[1755871859494,0.66,4508.6,4504.5,0.4454]
[1755871859694,7.822006,4509.0,4504.5,0.4454]
[1755871859695,3.0,4508.4,4504.5,0.4454]
[1755871859898,10.7830066,4508.3,4504.5,0.4454]
[1755871860214,2.21874225,4507.1,4504.5,0.4454]
[1755871860419,1.708,4508.3,4504.6,0.02219952]
[1755871860717,2.2181802,4508.2,4504.7,0.4454]
[1755871860927,1.708,4509.0,4504.7,0.4454]
[1755871861311,1.708,4509.0,4504.8,0.02219854]
[1755871861515,7.34,4508.9,4504.9,2.1534]
[1755871861692,0.66,4508.5,4503.9,0.4454]
[1755871861896,0.4479,4508.4,4503.9,0.4454]
[1755871862425,5.337,4508.8,4504.0,0.02220248]
[1755871862714,0.002,4508.8,4504.7,3.66]
[1755871862941,0.002,4508.8,4504.8,0.4454]
[1755871863087,0.002,4508.8,4504.9,0.66]
[1755871863620,0.002,4508.8,4506.7,2.21890861]
[1755871863786,0.002,4508.8,4506.8,0.02218869]
[1755871863985,0.002,4508.8,4506.0,5.337]
[1755871863986,0.0012,4508.8,4507.0,0.66]
[1755871864389,0.0012,4508.8,4508.6,2.21794956]
[1755871864597,0.0012,4508.8,4508.7,0.02217934]
[1755871865025,0.0012,4508.8,4508.4,1.607]
[1755871865325,0.4479,4515.8,4508.8,0.66]
[1755871865664,2.1549,4514.5,4509.1,0.66]
[1755871865789,2.04256664,4514.4,4509.2,0.46757688]
[1755871865984,1.707,4514.4,4509.4,3.0]
[1755871866199,1.707,4515.5,4509.5,0.4675754]
[1755871866434,1.707,4515.5,4509.7,3.2]
[1755871866588,1.707,4515.5,4509.9,3.0]
[1755871866930,0.003,4516.4,4512.2,0.66]
[1755871867220,0.003,4516.4,4512.8,0.66]
[1755871867389,0.003,4516.4,4514.2,0.1104]
[1755871867585,0.003,4516.4,4514.4,0.66]
[1755871867829,0.003,4516.4,4514.8,0.1104]
[1755871868121,0.003,4516.4,4516.2,2.21421842]
[1755871868420,0.02214201,4518.9,4515.9,1.13587254]
[1755871869213,2.21321849,4518.4,4513.4,5.332]
[1755871869423,3.0,4517.2,4513.5,1.706]
[1755871869590,0.66,4517.0,4513.2,0.4526]
[1755871869797,0.46834201,4516.9,4513.3,0.02215673]
[1755871870123,0.66,4516.7,4512.5,1.706]
[1755871870292,1.12834201,4516.6,4511.6,5.332]
[1755871870493,1.12834201,4516.6,4511.7,2.21642773]
[1755871870494,2.21420189,4516.3,4511.7,2.21642773]
[1755871870830,2.21420189,4516.3,4511.6,5.332]
[1755871870831,3.0,4516.1,4511.8,0.0221641]
[1755871871034,3.0,4516.1,4509.3,0.16497368]
[1755871871035,2.21596344,4512.8,4509.3,0.16497368]
[1755871871324,0.02214201,4512.7,4509.4,0.4526]
[1755871871491,0.4462,4513.9,4509.5,1.705]
[1755871871699,3.02214201,4513.8,4509.5,1.705]
[1755871871946,0.4462,4513.7,4509.5,1.705]
[1755871872150,0.02214201,4513.6,4509.7,2.2174424]
[1755871872358,0.02214201,4513.6,4509.5,1.705]
[1755871872359,0.02214201,4513.6,4509.8,0.47477393]
[1755871872659,0.02214201,4514.7,4510.3,0.66]
[1755871872835,0.02214201,4514.7,4511.6,0.66]
[1755871873006,0.02214201,4515.5,4511.7,9.4866]
[1755871873345,0.02214201,4515.5,4511.7,1.705]
[1755871873346,3.02214201,4515.5,4511.7,1.705]
[1755871873506,0.66,4514.9,4510.9,0.4526]
[1755871873706,0.66,4514.7,4510.0,1.705]
[1755871873906,3.66,4514.5,4510.0,0.4526]
[1755871874112,0.46834201,4514.4,4510.1,0.02217245]
[1755871874308,2.17334201,4514.4,4510.2,0.4526]
[1755871874510,2.21613778,4512.4,4510.2,0.4526]
[1755871874710,0.02214201,4512.3,4510.3,0.4526]
[1755871874910,0.02214201,4512.6,4510.4,1.72717098]
[1755871875109,3.0,4514.4,4509.3,1.705]
[1755871875110,0.02214201,4512.5,4509.3,1.705]
[1755871875341,0.02214201,4512.5,4509.3,1.702]
[1755871875342,2.2161398,4512.4,4509.3,1.702]
[1755871875542,0.02214201,4512.3,4509.4,0.02217589]
[1755871875743,0.02214201,4512.9,4509.4,0.4526]
[1755871876045,3.0,4512.7,4509.4,0.4526]
[1755871876261,2.21614416,4510.8,4508.7,1.705]
[1755871876410,0.46834201,4512.6,4508.7,1.705]
[1755871876411,0.02214201,4510.7,4508.7,1.705]
[1755871876611,2.2170065,4510.6,4508.8,0.02217885]
[1755871876939,2.2170065,4510.6,4507.4,5.329]
[1755871876940,0.02214201,4510.5,4506.0,1.705]
[1755871877143,2.21699995,4510.6,4507.3,0.4526]
[1755871877347,0.02214201,4510.6,4507.4,1.72718573]
[1755871877533,0.02214201,4511.4,4507.5,0.4526]
[1755871877711,0.02214201,4511.7,4507.6,0.02218475]
[1755871877914,0.02214201,4512.7,4508.2,3.66]
[1755871878140,0.4462,4512.6,4509.3,0.1112]
[1755871878340,0.4462,4514.9,4509.4,8.1466]
[1755871878548,0.4462,4514.0,4509.5,0.4526]
[1755871878747,0.02214201,4513.9,4509.5,0.4526]
[1755871878947,0.02214201,4513.9,4509.6,0.02217491]
[1755871878948,3.4462,4513.8,4509.6,0.02217491]
[1755871879248,0.66,4513.1,4508.7,0.4526]
[1755871879447,5.79734201,4513.7,4508.8,0.02217885]
[1755871879448,0.46834201,4513.0,4508.8,0.02217885]
[1755871879649,3.02214201,4512.9,4508.9,0.4526]
[1755871879849,2.21597515,4512.7,4510.5,2.21704102]
[1755871880057,0.02214201,4512.6,4511.1,2.21673497]
[1755871880213,2.21619621,4512.3,4510.8,1.705]
[1755871880414,0.46834201,4512.2,4509.7,1.705]
[1755871880617,0.46834201,4512.2,4509.0,1.705]
[1755871880918,3.0,4512.1,4509.1,0.4526]
[1755871881130,0.66,4511.8,4508.1,0.4526]
[1755871881345,0.02214201,4511.7,4508.7,0.16657057]
[1755871881652,0.02214201,4511.7,4509.0,5.1576]
[1755871881839,5.329,4514.0,4509.0,5.1576]
[1755871881840,0.4462,4514.1,4509.4,2.21758992]
[1755871882156,0.02214201,4514.0,4509.1,3.4526]
[1755871882327,0.02214201,4514.0,4509.3,0.4526]
[1755871882531,0.02214201,4514.0,4510.0,2.21727652]
[1755871882721,0.02214201,4514.0,4509.5,3.0]
[1755871882919,0.02214201,4514.1,4509.6,0.4526]
[1755871883176,0.02214201,4514.0,4509.9,0.66]
[1755871883334,0.02214201,4514.3,4510.3,0.66]
[1755871883650,0.11593225,4514.4,4514.3,2.21518286]
[1755871883823,0.4462,4518.1,4514.3,2.17975182]
[1755871883824,1.12975952,4517.3,4514.3,2.17975182]
[1755871884023,1.12975952,4517.3,4514.3,2.1576]
[1755871884249,2.21380974,4517.1,4513.1,0.4526]
[1755871884450,0.46834201,4517.0,4511.8,2.66898127]
[1755871884751,0.66,4515.7,4511.8,2.21639736]
[1755871885058,3.66,4515.5,4511.8,0.16653361]
[1755871885229,0.66,4513.1,4509.2,0.4526]
[1755871885426,0.66,4512.8,4509.2,0.4526]
[1755871885748,7.54465773,4513.4,4509.2,0.4526]
[1755871885749,0.02214201,4512.7,4509.3,1.72717639]
[1755871885949,0.02214201,4513.4,4509.4,5.75177589]
[1755871886118,0.02214201,4513.3,4509.6,0.66]
[1755871886321,0.02214201,4514.2,4510.0,0.66]
[1755871886514,0.4462,4514.1,4510.1,0.4526]
[1755871886846,2.21598495,4512.7,4510.4,2.2170533]
[1755871887055,0.4462,4514.1,4509.5,5.329]
[1755871887056,0.4462,4517.7,4511.4,1.705]
[1755871887255,0.4462,4517.7,4511.6,3.0]
[1755871887452,0.4462,4517.7,4511.7,7.7796]
[1755871887751,2.21361372,4517.5,4513.1,2.21575983]
[1755871887955,0.66,4517.2,4513.1,0.1649346]
[1755871888133,0.002,4513.3,4513.2,2.23787998]
[1755871888329,0.002,4513.3,4513.2,2.66832276]
[1755871888654,0.4462,4517.6,4513.4,3.0]
[1755871888841,0.4462,4518.5,4513.7,0.66]
[1755871889045,2.6593435,4518.5,4515.5,2.21458381]
[1755871889231,2.21423496,4516.3,4515.1,1.705]
[1755871889556,0.4462,4517.0,4514.0,1.705]
[1755871889755,1.705,4517.9,4514.1,0.4526]
[1755871889962,0.4462,4516.9,4514.3,2.21516366]
[1755871890137,0.4462,4516.9,4514.1,0.4526]
[1755871890337,0.4462,4516.9,4514.0,1.705]
[1755871890693,3.0,4516.8,4514.1,0.02215281]
[1755871890870,1.705,4517.8,4514.1,0.47475281]
[1755871891031,0.21512,4517.7,4514.1,0.4526]
[1755871891362,4.705,4517.8,4514.8,2.21490077]
[1755871891671,1.705,4517.8,4514.9,0.47474888]
[1755871891966,1.705,4517.8,4514.9,2.66744421]
[1755871892175,0.4462,4517.7,4511.3,2.2166139]
[1755871892339,0.2,4516.9,4511.4,0.11645668]
[1755871892540,0.2,4516.5,4510.6,0.4526]
[1755871892870,1.78260199,4515.3,4510.2,0.16629326]
[1755871893076,0.66,4514.7,4509.3,0.001]
[1755871893254,0.66,4514.7,4508.6,0.4526]
[1755871893255,0.66,4513.8,4508.6,0.4526]
[1755871893455,3.0,4513.6,4508.7,0.02217934]
[1755871893667,0.66,4513.3,4508.6,0.4526]
[1755871893959,2.21577186,4513.1,4508.7,0.02217934]
[1755871894161,2.21675878,4511.1,4508.8,0.4526]
[1755871894361,3.0,4513.0,4508.8,0.4526]
[1755871894567,1.704,4513.2,4508.8,0.4526]
[1755871894568,2.21577186,4513.1,4508.8,0.4526]
[1755871894744,2.21706126,4510.5,4508.8,0.4526]
[1755871894946,0.66,4511.9,4508.8,0.4526]
[1755871895153,0.66,4511.9,4508.0,1.704]
[1755871895154,2.21648421,4511.7,4508.1,0.4526]
[1755871895462,1.705,4512.9,4508.9,0.4526]
[1755871895866,2.21591916,4512.8,4509.0,2.21775703]
[1755871896036,1.705,4512.9,4509.1,2.21773746]
[1755871896241,2.21591916,4512.8,4509.1,0.4526]
[1755871896486,1.705,4512.9,4510.3,2.2171059]
[1755871896668,1.705,4512.9,4510.0,1.705]
[1755871896841,1.705,4512.9,4510.1,0.02217245]
[1755871897042,0.4462,4514.7,4510.4,0.66]
[1755871897242,1.705,4515.9,4510.9,3.0]
[1755871897443,0.4462,4515.9,4511.7,3.66]
[1755871897682,2.21417517,4516.4,4511.9,5.87634674]
[1755871897838,0.4462,4518.2,4512.8,3.66]
[1755871898145,0.4462,4518.2,4513.0,14.50248441]
[1755871898349,1.704,4518.1,4513.2,5.21572276]
[1755871898547,1.704,4518.1,4513.4,3.0]
[1755871898548,0.4676,4518.0,4513.4,3.0]
[1755871898737,0.4676,4518.0,4513.3,9.5048]
[1755871898738,2.21346673,4517.8,4513.5,1.72615575]
[1755871898935,0.002,4517.3,4513.6,3.4748]
[1755871899156,0.002,4517.3,4513.6,0.4748]
[1755871899360,0.4676,4517.2,4513.5,1.704]
[1755871899584,3.0,4517.0,4512.3,0.4748]
[1755871899788,0.66,4515.5,4512.3,0.4748]
[1755871899952,0.66,4515.3,4512.2,1.704]
[1755871900142,0.4676,4515.2,4512.2,1.704]
[1755871900544,2.21526802,4514.2,4512.2,2.1788]
[1755871900855,0.4676,4514.3,4512.1,0.001]
[1755871901038,0.66,4514.1,4512.1,0.001]
[1755871901242,1.704,4514.0,4512.1,0.001]
[1755871901772,0.002,4517.3,4512.2,7.325]
[1755871901981,0.002,4517.3,4512.4,0.66]
[1755871902183,0.002,4517.3,4512.6,0.66]
[1755871902351,0.002,4517.3,4512.8,3.66]
[1755871902678,0.002,4517.3,4512.9,7.325]
[1755871902901,0.002,4517.3,4514.4,0.1104]
[1755871903058,0.002,4517.3,4514.7,5.21498659]
[1755871903258,0.002,4517.3,4515.0,2.21483942]
[1755871903602,0.002,4517.3,4514.8,5.8018]
[1755871903760,0.002,4517.3,4514.8,5.327]
[1755871903961,0.002,4517.3,4515.0,0.4748]
[1755871904567,0.002,4517.3,4514.5,1.704]
[1755871904786,2.21376073,4517.2,4514.5,1.704]
[1755871904951,2.21437327,4516.0,4514.5,1.704]
[1755871905151,0.4676,4517.0,4514.5,1.704]
[1755871905454,0.002,4517.3,4514.6,0.4748]
[1755871905710,2.21377756,4517.2,4514.9,2.21487964]
[1755871905890,0.002,4517.3,4515.0,0.4748]
[1755871906067,0.002,4517.3,4515.1,0.66]
[1755871906250,0.002,4517.3,4515.0,0.4748]
[1755871906457,0.002,4517.3,4515.1,10.323]
[1755871906811,0.002,4517.3,4515.2,1.704]
[1755871907099,0.002,4517.3,4514.4,1.704]
[1755871907265,0.66,4516.9,4514.4,1.704]
[1755871907459,0.4676,4517.2,4514.4,1.704]
[1755871907794,0.002,4517.3,4514.4,2.1788]
[1755871908151,2.21376073,4517.2,4514.4,2.1788]
[1755871908353,0.002,4517.3,4514.4,1.704]
[1755871908659,0.002,4517.3,4514.9,0.66]
[1755871908966,0.002,4517.3,4514.5,0.4748]
[1755871909173,0.002,4517.3,4514.9,0.4748]
[1755871909370,2.21427504,4516.2,4514.9,0.4748]
[1755871909578,2.2142052,4516.3,4514.9,0.4748]
[1755871909781,0.002,4517.3,4514.9,0.4748]
[1755871909995,0.66,4516.8,4514.4,1.704]
[1755871910307,0.66,4516.5,4512.4,0.4748]
[1755871910467,4.1276,4516.4,4512.4,0.4748]
[1755871910773,1.61246,4516.3,4512.3,0.001]
[1755871910974,0.66,4512.4,4512.3,1e-08]
[1755871911201,0.66,4512.4,4508.5,0.4748]
[1755871911202,0.66,4511.5,4508.5,0.4748]
[1755871911500,0.66,4511.5,4507.6,1.703]
[1755871911501,3.66,4511.7,4507.6,2.1778]
[1755871911675,3.66,4511.7,4504.0,2.22022029]
[1755871911676,5.21806617,4508.5,4505.7,1.703]
[1755871912066,0.4676,4510.0,4507.0,0.4748]
[1755871912279,0.4676,4510.0,4507.1,0.02218721]
[1755871912479,0.4676,4510.0,4507.0,2.1778]
[1755871912698,1.703,4510.3,4508.0,0.4748]
[1755871913216,2.21719657,4510.2,4508.0,0.4748]
[1755871913399,2.21807296,4508.5,4506.8,0.4748]
[1755871913699,2.21807296,4508.5,4505.9,2.1788]
[1755871913901,2.21805605,4508.5,4506.7,0.4748]
[1755871914202,2.21805605,4508.5,4506.2,2.21912719]
[1755871914203,2.21806444,4508.5,4506.0,0.4748]
[1755871914591,1.704,4510.0,4505.9,1.704]
[1755871914778,0.4676,4511.3,4508.4,0.4748]
[1755871915109,0.4676,4512.9,4508.5,0.66]
[1755871915272,0.4676,4512.9,4508.6,2.1788]
[1755871915473,2.21601737,4512.6,4508.8,0.66]
[1755871915674,2.21628708,4512.1,4509.8,2.2173619]
[1755871915903,0.4676,4512.9,4509.9,2.20097344]
[1755871916075,1.704,4513.2,4510.0,1.705]
[1755871916404,1.704,4513.2,4510.1,0.02217245]
[1755871916602,0.4676,4513.1,4510.0,1.705]
[1755871916772,0.4676,4513.1,4510.1,0.02217245]
[1755871916975,0.4676,4513.1,4510.0,1.705]
[1755871917203,1.704,4513.2,4510.1,0.4748]
[1755871917374,1.704,4513.2,4510.0,1.705]
[1755871917722,0.4676,4513.1,4510.0,1.705]
[1755871918014,0.4676,4513.1,4508.6,3.0]
[1755871918015,0.66,4512.8,4509.0,1.705]
[1755871918232,2.2170484,4510.6,4509.0,1.705]
[1755871918404,3.0,4512.0,4509.0,1.705]
[1755871918405,3.0,4511.3,4509.0,1.705]
[1755871918592,1.705,4511.7,4509.0,1.705]
[1755871918593,2.21670508,4511.2,4509.0,1.705]
[1755871918796,2.21660681,4511.4,4509.0,1.705]
[1755871918986,1.705,4511.7,4509.0,1.705]
[1755871919487,1.705,4511.7,4509.1,0.02217737]
[1755871919685,1.705,4511.7,4509.2,0.4748]
[1755871919887,1.705,4512.2,4509.2,0.4748]
[1755871920412,0.4676,4512.1,4509.2,0.4748]
[1755871920615,0.4676,4513.2,4509.3,0.02217639]
[1755871920790,3.21726,4513.1,4509.2,0.4748]
[1755871920995,0.4676,4513.0,4509.2,0.4748]
[1755871921315,1.705,4513.4,4509.5,0.66]
[1755871921615,1.705,4513.4,4510.1,0.66]
[1755871921814,2.21460771,4515.5,4509.3,5.21763518]
[1755871921815,0.4676,4515.1,4510.4,2.21709826]
[1755871922114,2.21469226,4515.3,4510.8,3.0]
[1755871922414,2.1726,4516.8,4511.2,2.21670508]
[1755871922590,2.1726,4516.8,4511.4,2.21660681]
[1755871922913,1.705,4516.8,4511.6,3.0]
[1755871923091,0.4676,4516.7,4511.9,0.66]
[1755871923415,2.21404055,4516.7,4513.0,0.66]
[1755871923616,2.21452541,4515.7,4513.1,5.8038]
[1755871923816,0.4676,4515.6,4512.3,0.4748]
[1755871923993,10.327,4516.5,4511.8,0.0221641]
[1755871923994,3.4676,4515.5,4511.8,0.0221641]
[1755871924200,0.4676,4515.5,4511.9,0.4748]
[1755871924394,0.4676,4515.5,4512.0,0.02216312]
[1755871924610,3.4676,4515.5,4511.9,0.4748]
[1755871924812,3.0,4515.2,4511.9,0.4748]
[1755871925106,1.705,4515.1,4511.9,0.4748]
[1755871925306,2.2150233,4514.7,4511.9,0.4748]
[1755871925512,2.2150233,4514.7,4511.4,1.705]
[1755871925513,0.4676,4517.6,4512.0,0.4748]
[1755871925901,1.705,4518.1,4512.3,0.66]
[1755871926235,1.705,4518.6,4513.2,0.66]
[1755871926402,1.705,4518.6,4513.5,0.66]
[1755871926733,1.705,4518.6,4513.4,3.0]
[1755871926734,0.00105768,4517.3,4514.3,2.21515195]
[1755871926902,0.00105768,4517.3,4514.5,0.66]
[1755871927099,0.00105768,4517.3,4514.7,0.66]
[1755871927330,5.328,4522.4,4514.6,4.72715035]
[1755871927331,1.705,4521.8,4516.7,2.213981]
[1755871927599,1.705,4521.8,4516.9,3.0]
[1755871927600,1.135488,4521.6,4516.9,3.0]
[1755871927825,2.21211843,4520.6,4517.0,0.66]
[1755871928037,3.34712265,4521.6,4517.0,0.4748]
[1755871928038,1.135488,4521.6,4517.0,0.4748]
[1755871928255,0.469,4520.9,4517.1,1.1078]
[1755871928422,0.469,4520.9,4517.1,0.4478]
[1755871928634,1.704,4520.4,4517.1,0.4478]
[1755871928846,0.00151399,4518.7,4517.2,0.6821376]
[1755871929151,0.667888,4521.6,4519.0,3.0]
[1755871929342,0.667888,4521.6,4519.2,0.66]
[1755871929707,0.667888,4521.6,4519.1,7.03]
[1755871929919,0.667888,4521.6,4519.2,0.02212781]
[1755871930121,0.469,4521.4,4519.1,7.03]
[1755871930440,0.667888,4521.6,4519.7,2.21253129]
[1755871930609,1.315,4519.9,4519.8,0.66]
[1755871930924,0.667888,4521.6,4519.8,0.66]
[1755871930925,0.667888,4521.6,4519.8,0.1659861]
[1755871931105,0.667888,4521.6,4519.9,0.66]
[1755871931447,0.667888,4521.6,4519.6,3.0]
[1755871931607,0.667888,4521.6,4520.8,0.66]
[1755871931810,0.667888,4521.6,4520.7,0.66]
[1755871932051,0.667888,4521.6,4520.5,1.703]
[1755871932255,0.667888,4521.6,4521.5,0.66]
[1755871932426,0.667888,4521.6,4521.3,5.324]
[1755871932633,0.667888,4521.6,4521.5,3.66]
[1755871932833,7.10851428,4524.7,4521.6,2.21160651]
[1755871933044,7.10851428,4524.7,4521.7,0.02211557]
[1755871933045,0.469,4524.6,4521.7,0.02211557]
[1755871933304,0.469,4524.6,4521.4,10.32]
[1755871933305,7.10851428,4524.7,4521.8,1.703]
[1755871933559,7.10851428,4524.7,4521.9,0.68211459]
[1755871933727,7.10851428,4524.7,4521.9,0.66]
[1755871933931,7.10851428,4524.7,4522.5,0.66]
[1755871934267,7.10851428,4524.7,4522.7,0.66]
[1755871934470,7.10851428,4524.7,4521.5,3.0]
[1755871934471,7.10851428,4524.7,4522.4,0.66]
[1755871935053,7.10851428,4524.7,4522.6,0.1104]
[1755871935235,7.10851428,4524.7,4524.6,0.66]
[1755871935437,0.2495,4526.9,4524.6,18.2752764]
[1755871935635,1.24,4525.9,4525.8,3.66]
[1755871935858,0.2495,4526.9,4526.3,0.66]
[1755871936058,0.2495,4526.9,4526.4,0.28354071]
[1755871936260,0.2495,4526.9,4526.8,2.209066]
[1755871936573,11.79,4529.9,4526.9,2.2090172]
[1755871936873,11.79,4529.9,4528.7,0.1104]
[1755871937053,11.79,4529.9,4528.7,1.83348139]
[1755871937228,11.79,4529.9,4528.7,1.8114]
[1755871937427,0.03322161,4528.8,4528.7,1.701]
[1755871937673,0.03322161,4528.8,4528.7,1.8114]
[1755871937870,0.03322161,4528.8,4528.7,1.98082414]
[1755871938069,11.79,4529.9,4529.2,2.20786407]
[1755871938364,0.469,4532.9,4529.8,0.657]
[1755871938540,0.469,4532.9,4529.3,5.317]
[1755871938541,0.469,4533.4,4530.1,0.1104]
[1755871938727,0.469,4533.4,4530.4,3.0]
[1755871938925,1.701,4534.8,4531.4,0.1104]
[1755871938926,0.469,4534.3,4531.4,0.1104]
[1755871939128,0.469,4533.6,4528.7,5.48642414]
[1755871939329,0.49109261,4533.6,4528.9,2.20804168]
[1755871939559,0.02209261,4533.5,4529.0,0.02207992]
[1755871939858,0.469,4534.6,4529.1,0.2]
[1755871940058,5.313,4538.0,4529.2,13.15815738]
[1755871940059,0.469,4534.8,4529.2,13.15815738]
[1755871940260,0.469,4534.8,4529.6,0.2]
[1755871940567,0.469,4534.8,4529.7,7.32707651]
[1755871940766,0.469,4534.6,4529.9,0.66]
[1755871940994,0.469,4533.6,4528.9,2.20804168]
[1755871941305,0.469,4533.6,4528.8,4.701]
[1755871941306,0.469,4533.6,4529.1,5.20794418]
[1755871941601,0.469,4536.2,4533.6,0.66]
[1755871941807,0.469,4536.2,4531.0,2.20701831]
[1755871941808,0.469,4535.5,4533.1,7.305]
[1755871942009,0.469,4535.5,4533.5,2.2057903]
[1755871942294,0.469,4535.5,4533.5,5.2057903]
[1755871942465,0.469,4534.7,4532.9,0.16593542]
[1755871942659,0.469,4534.2,4532.0,1.7]
[1755871942871,1.7,4535.9,4533.5,2.20579041]
[1755871942872,0.469,4535.4,4533.5,2.20579041]
[1755871943080,0.02203,4537.3,4531.6,5.313]
[1755871943081,0.02209261,4536.8,4533.2,1.699]
[1755871943359,0.469,4535.9,4533.3,8.999]
[1755871943694,1.699,4537.1,4533.4,9.02105849]
[1755871943862,0.469,4537.0,4536.2,2.20444815]
[1755871944188,0.469,4537.0,4533.5,8.999]
[1755871944189,0.469,4536.6,4534.9,2.20509069]
[1755871944357,0.469,4536.6,4536.1,2.20452999]
[1755871944561,0.02203,4537.3,4536.5,2.20433232]
[1755871944796,0.01265415,4538.6,4536.7,2.20424537]
[1755871944998,0.00446037,4541.8,4538.2,1.11113613]
[1755871945214,0.0275094,4543.9,4541.3,13.13607843]
[1755871945361,0.1152799,4545.5,4544.6,2.20041367]
[1755871945563,0.0166276,4547.8,4547.7,2.19891373]
[1755871945779,0.18759389,4550.0,4549.9,2.1978505]
[1755871945962,0.18759389,4550.0,4547.8,3.0]
[1755871945963,0.18759389,4550.0,4549.3,5.304]
[1755871946266,1.24162572,4552.6,4548.8,5.304]
[1755871946463,1.24162572,4552.6,4549.4,1.697]
[1755871946772,0.0698795,4557.7,4549.5,0.15893416]
[1755871946773,3.469,4554.0,4549.5,0.15893416]
[1755871946972,0.469,4552.6,4549.6,0.02197995]
[1755871947191,0.469,4552.6,4548.8,2.1274206]
[1755871947192,1.29221873,4553.9,4548.8,3.8244206]
[1755871947375,0.469,4553.2,4548.9,2.19833366]
[1755871947564,0.469,4553.2,4548.0,2.27869526]
[1755871947767,0.3861582,4553.2,4548.1,7.2208]
[1755871947967,1.697,4553.1,4547.4,5.304]
[1755871948204,1.697,4553.1,4546.4,0.26785534]
[1755871948498,6.4047,4553.0,4545.5,0.0828]
[1755871948664,0.3861582,4552.9,4545.5,0.0818]
[1755871948865,2.0811582,4552.9,4545.9,13.13607843]
[1755871949166,3.0,4554.0,4546.9,3.0]
[1755871949510,3.0,4554.0,4546.3,0.1647]
[1755871949712,2.9992,4554.0,4547.7,2.19887982]
[1755871950012,7.85142,4553.9,4546.4,0.0343]
[1755871950212,0.2,4551.4,4542.4,2.20143207]
[1755871950378,0.2,4548.0,4543.6,0.1632159]
[1755871950703,0.2,4545.7,4543.9,0.05180951]
[1755871950863,3.0,4545.5,4539.7,0.4478]
[1755871951068,15.89007843,4547.9,4539.7,0.4478]
[1755871951069,1.695,4545.4,4539.7,0.4478]
[1755871951302,1.695,4545.3,4539.8,1.695]
[1755871951508,1.695,4545.2,4538.9,2.20313009]
[1755871951668,1.695,4545.2,4538.2,0.4478]
[1755871952005,3.0,4543.7,4537.4,0.4478]
[1755871952212,3.0,4543.5,4536.9,0.10921387]
[1755871952375,3.0,4543.5,4539.8,2.20271036]
[1755871952576,1.694,4543.4,4538.5,0.4478]